No. of Trans,Dept Family,Entity Name,Cert Date,Supplier Name,Reference,Gross Amt,Group/Department,Type of Expenditure - Subjective Codes
1,DCMS,EH,06/02/2015,Advanced Computer Software Group,0040091063,"60,619.09 ",Resources-IMT,Software Maintenance
2,DCMS,EH,24/02/2015,Barbican Research Associates Ltd,0040091287,"64,000.00 ",Heritage Protection & Planning-Heritage Protection,Hist Environ Prog Projects Gra
3,DCMS,EH,20/02/2015,Bond Dickinson LLP,0040088050,"27,272.28 ",National Advice & Information-Governance & Legal Department,Legal Fees
4,DCMS,EH,20/02/2015,Bond Dickinson LLP,0040088050,9.00 ,National Advice & Information-Governance & Legal Department,Legal Fees
5,DCMS,EH,17/02/2015,Brighton St Peter,0082003599,"46,000.00 ",Heritage Protection & Planning-Nat. Planning & Conservation,GRANTS PAYABLE PLACES OF WORSHIP
6,DCMS,EH,17/02/2015,Brighton St Peter,0082003601,"46,800.00 ",Heritage Protection & Planning-Nat. Planning & Conservation,GRANTS PAYABLE PLACES OF WORSHIP
7,DCMS,EH,25/02/2015,British Gas,0020068767,"29,319.02 ",Resources-Corporate,Utilities Direct Debit Suspens
8,DCMS,EH,27/02/2015,Burgh Castle PCC,0082003629,"45,500.00 ",Heritage Protection & Planning-Nat. Planning & Conservation,GRANTS PAYABLE PLACES OF WORSHIP
9,DCMS,EH,25/02/2015,Buxton Building Contractors Ltd,0040092630,"177,023.83 ",National Collections-Capital Investment Programme,WIP Operational Building Works
10,DCMS,EH,09/02/2015,Capita Secure Information Solutions Ltd,0040089509,"251,116.75 ",Resources-IMT,ITFM
11,DCMS,EH,11/02/2015,Capita Secure Information Solutions Ltd,0040091339,"57,625.90 ",Resources-IMT,ITFM
12,DCMS,EH,12/02/2015,Capita Secure Information Solutions Ltd,0040091344,"32,565.34 ",Resources-IMT,WIP Asset Purch Over 10k
13,DCMS,EH,16/02/2015,Capita Secure Information Solutions Ltd,0040092184,"34,073.98 ",Resources-IMT,ITFM
14,DCMS,EH,09/02/2015,Carlisle City Council,0090514102,"27,575.00 ",Heritage Protection & Planning-Nat. Planning & Conservation,GRANTS PAYABLE HISTORIC BUILDINGS
15,DCMS,EH,16/02/2015,Carter Jonas (Druids Lodge Partmership),0040088926,"27,097.07 ",National Collections-Historic Properties Department,Rent - Operating Leases
16,DCMS,EH,16/02/2015,Carter Jonas (Druids Lodge Partmership),0040088926,"27,097.07 ",National Collections-Historic Properties Department,Rent - Operating Leases
17,DCMS,EH,16/02/2015,Carter Jonas (Druids Lodge Partmership),0040088926,"27,097.07 ",National Collections-Historic Properties Department,Rent - Operating Leases
18,DCMS,EH,20/02/2015,CB Richard Ellis Ltd,0040092740,"32,700.00 ",Heritage Protection & Planning-Nat. Planning & Conservation,Legal Fees
19,DCMS,EH,20/02/2015,Chiswick House and Gardens Trust,0020068658,"25,538.15 ",National Collections-Capital Investment Programme,Chiswick Control Account
20,DCMS,EH,27/02/2015,CITU (Kelham Island) LLP,0082003636,"167,101.00 ",Heritage Protection & Planning-Nat. Planning & Conservation,GRANTS PAYABLE HISTORIC BUILDINGS
21,DCMS,EH,17/02/2015,Combermere Abbey,0082003602,"35,531.00 ",Heritage Protection & Planning-Nat. Planning & Conservation,GRANTS PAYABLE HISTORIC BUILDINGS
22,DCMS,EH,27/02/2015,Cotswold Archaeology,0040090300,"27,369.11 ",Heritage Protection & Planning-Heritage Protection,Hist Environ Prog Projects Gra
23,DCMS,EH,25/02/2015,Derbyshire Wildlife Trust,0090514137,"38,000.00 ",Heritage Protection & Planning-Nat. Planning & Conservation,GRANTS PAYABLE OTHER GRANTS
24,DCMS,EH,06/02/2015,Donald Insall Associates Ltd,0040091191,"32,208.96 ",National Collections-Asset Management Plan,Fees for Professional Advice
25,DCMS,EH,16/02/2015,Dudley Metropolitan Borough Council,0090514119,"25,030.00 ",Heritage Protection & Planning-Nat. Planning & Conservation,GRANTS PAYABLE AREA
26,DCMS,EH,17/02/2015,East Tuddenham PCC,0082003597,"31,500.00 ",Heritage Protection & Planning-Nat. Planning & Conservation,GRANTS PAYABLE PLACES OF WORSHIP
27,DCMS,EH,27/02/2015,EDF ,0020068838,"26,776.97 ",Resources-Corporate,Utilities Direct Debit Suspens
28,DCMS,EH,24/02/2015,ESRI (UK) Ltd,0040092849,"240,000.00 ",Resources-IMT,Software Maintenance
29,DCMS,EH,26/02/2015,Feilden Clegg Bradley Studios LLP,0020068775,"75,978.00 ",Heritage Protection & Planning-Nat. Planning & Conservation,Commissioned Architects
30,DCMS,EH,06/02/2015,FSG Property Services Ltd,0040089162,"9,642.80 ",National Collections-Property Maintenance Programme,Leased Accomodation Maint
31,DCMS,EH,06/02/2015,FSG Property Services Ltd,0040089162,"4,090.91 ",National Collections-Property Maintenance Programme,Leased Accomodation Maint
32,DCMS,EH,06/02/2015,FSG Property Services Ltd,0040089162,"36,009.07 ",National Collections-Property Maintenance Programme,Leased Accomodation Maint
33,DCMS,EH,27/02/2015,Gayton PCC,0082003631,"35,550.00 ",Heritage Protection & Planning-Nat. Planning & Conservation,GRANTS PAYABLE PLACES OF WORSHIP
34,DCMS,EH,11/02/2015,Gillards Worldwide,0040091805,"31,747.65 ",National Collections-Historic Properties Department,Marketing Distribution
35,DCMS,EH,25/02/2015,Gloucestershire County Council,0081003231,"25,000.00 ",Heritage Protection & Planning-Heritage Protection,ENABLING PROGRAMMES ENABLING PROGRAMMES
36,DCMS,EH,23/02/2015,Go South Coast Ltd,0040091424,"34,582.61 ",National Collections-Historic Properties Department,Agency Staff
37,DCMS,EH,27/02/2015,Harlaxton College Uni Evansville,0082003627,"44,037.00 ",Heritage Protection & Planning-Nat. Planning & Conservation,GRANTS PAYABLE HISTORIC BUILDINGS
38,DCMS,EH,16/02/2015,Historic Chapels Trust,0090514114,"25,310.00 ",Heritage Protection & Planning-Nat. Planning & Conservation,GRANTS PAYABLE OTHER GRANTS
39,DCMS,EH,09/02/2015,Historic Property Restoration Ltd,0040091058,342.79 ,National Collections-Property Maintenance Programme,Leased Accomodation Maint
40,DCMS,EH,09/02/2015,Historic Property Restoration Ltd,0040091058,"9,283.48 ",National Collections-Property Maintenance Programme,Responsive Repairs M & E
41,DCMS,EH,09/02/2015,Historic Property Restoration Ltd,0040091058,162.65 ,National Collections-Property Maintenance Programme,Responsive Repairs M & E
42,DCMS,EH,09/02/2015,Historic Property Restoration Ltd,0040091058,"4,872.94 ",National Collections-Property Maintenance Programme,Responsive Maint Building
43,DCMS,EH,09/02/2015,Historic Property Restoration Ltd,0040091058,"2,983.03 ",National Collections-Property Maintenance Programme,Responsive Maint Building
44,DCMS,EH,09/02/2015,Historic Property Restoration Ltd,0040091058,"18,993.25 ",National Collections-Property Maintenance Programme,Planned Maintenance
45,DCMS,EH,09/02/2015,Historic Property Restoration Ltd,0040091058,"1,091.09 ",National Collections-Property Maintenance Programme,Leased Accomodation Maint
46,DCMS,EH,09/02/2015,Historic Property Restoration Ltd,0040091058,181.82 ,National Collections-Property Maintenance Programme,Planned Maintenance
47,DCMS,EH,11/02/2015,Kineton PCC,0082003582,"71,000.00 ",Heritage Protection & Planning-Nat. Planning & Conservation,GRANTS PAYABLE PLACES OF WORSHIP
48,DCMS,EH,18/02/2015,Konica Minolta Bus. Sols. (UK) Ltd,0040092278,"(20,401.09)",Resources-Human Resources,Reprographic
49,DCMS,EH,04/02/2015,Landmark Chambers,0040090649,"30,960.00 ",Heritage Protection & Planning-Nat. Planning & Conservation,Legal Fees
50,DCMS,EH,27/02/2015,Leach Colour,0040088762,"1,578.00 ",National Collections-Capital Investment Programme,Fees for Professional Advice
51,DCMS,EH,27/02/2015,Leach Colour,0040088762,"41,028.00 ",National Collections-Capital Investment Programme,Fees for Professional Advice
52,DCMS,EH,27/02/2015,Leach Colour,0040088762,"4,229.04 ",National Collections-Capital Investment Programme,Fees for Professional Advice
53,DCMS,EH,27/02/2015,Leach Colour,0040088762,504.96 ,National Collections-Capital Investment Programme,Fees for Professional Advice
54,DCMS,EH,27/02/2015,Leach Colour,0040091220,"78,900.00 ",National Collections-Capital Investment Programme,Fees for Professional Advice
55,DCMS,EH,17/02/2015,Leeds City Council,0082003605,"40,394.00 ",Heritage Protection & Planning-Nat. Planning & Conservation,GRANTS PAYABLE HISTORIC BUILDINGS
56,DCMS,EH,04/02/2015,Lincolnshire County Council,0040090308,"71,808.24 ",National Collections-Local Management Agreements,RO Management Agreement
57,DCMS,EH,27/02/2015,Liverpool City Council,0082003640,"59,804.00 ",Heritage Protection & Planning-Nat. Planning & Conservation,GRANTS PAYABLE HISTORIC BUILDINGS
58,DCMS,EH,04/02/2015,London Borough of Ealing,0090514095,"38,836.00 ",Heritage Protection & Planning-Nat. Planning & Conservation,GRANTS PAYABLE AREA
59,DCMS,EH,03/02/2015,Lyme Bay Cider Company Ltd,0077000390,"30,004.44 ",National Collections-Historic Properties Department,Stock Goods and Souvenirs
60,DCMS,EH,03/02/2015,Lyme Bay Cider Company Ltd,0077000390,0.08 ,National Collections-Historic Properties Department,Stock Goods and Souvenirs
61,DCMS,EH,03/02/2015,Lyme Bay Cider Company Ltd,0077000519,"18,754.56 ",National Collections-Historic Properties Department,Stock Goods and Souvenirs
62,DCMS,EH,03/02/2015,Lyme Bay Cider Company Ltd,0077000519,"19,809.51 ",National Collections-Historic Properties Department,Stock Goods and Souvenirs
63,DCMS,EH,03/02/2015,Lyme Bay Cider Company Ltd,0077000519,"10,084.57 ",National Collections-Historic Properties Department,Stock Goods and Souvenirs
64,DCMS,EH,03/02/2015,Lyme Bay Cider Company Ltd,0077000519,(0.01),Resources-Corporate,Bad Debts
65,DCMS,EH,28/02/2015,Lyme Bay Cider Company Ltd,0077000756,"19,809.50 ",National Collections-Historic Properties Department,Stock Goods and Souvenirs
66,DCMS,EH,28/02/2015,Lyme Bay Cider Company Ltd,0077000756,"18,754.56 ",National Collections-Historic Properties Department,Stock Goods and Souvenirs
67,DCMS,EH,28/02/2015,Lyme Bay Cider Company Ltd,0077000774,(0.01),Resources-Corporate,Bad Debts
68,DCMS,EH,28/02/2015,Lyme Bay Cider Company Ltd,0077000774,"11,251.70 ",National Collections-Historic Properties Department,Stock Goods and Souvenirs
69,DCMS,EH,28/02/2015,Lyme Bay Cider Company Ltd,0077000774,"11,251.71 ",National Collections-Historic Properties Department,Stock Goods and Souvenirs
70,DCMS,EH,28/02/2015,Lyme Bay Cider Company Ltd,0077000774,"7,501.13 ",National Collections-Historic Properties Department,Stock Goods and Souvenirs
71,DCMS,EH,11/02/2015,Middleton on the Hill PCC,0082003581,"33,000.00 ",Heritage Protection & Planning-Nat. Planning & Conservation,GRANTS PAYABLE PLACES OF WORSHIP
72,DCMS,EH,25/02/2015,Museum of London Arch Services,0081003229,"30,000.00 ",Heritage Protection & Planning-Heritage Protection,ENABLING PROGRAMMES ENABLING PROGRAMMES
73,DCMS,EH,19/02/2015,Norman Disney and Young,0040092117,"41,365.28 ",National Collections-Capital Investment Programme,WIP Professional Works Advice
74,DCMS,EH,11/02/2015,North Norfolk Historic Buildings Trust,0082003589,"29,850.00 ",Heritage Protection & Planning-Nat. Planning & Conservation,GRANTS PAYABLE HISTORIC BUILDINGS
75,DCMS,EH,25/02/2015,North York Moors National Park,0090514135,"35,393.00 ",Heritage Protection & Planning-Nat. Planning & Conservation,GRANTS PAYABLE OTHER GRANTS
76,DCMS,EH,11/02/2015,Parochial Church Council of Chetwynd,0082003584,"40,000.00 ",Heritage Protection & Planning-Nat. Planning & Conservation,GRANTS PAYABLE PLACES OF WORSHIP
77,DCMS,EH,27/02/2015,PCC of St Margaret's Hollinwood,0082003633,"46,500.00 ",Heritage Protection & Planning-Nat. Planning & Conservation,GRANTS PAYABLE PLACES OF WORSHIP
78,DCMS,EH,27/02/2015,PCC of St Margaret's Hollinwood,0082003634,"30,700.00 ",Heritage Protection & Planning-Nat. Planning & Conservation,GRANTS PAYABLE PLACES OF WORSHIP
79,DCMS,EH,24/02/2015,PCC St Matthias Church,0082003626,"46,000.00 ",Heritage Protection & Planning-Nat. Planning & Conservation,GRANTS PAYABLE PLACES OF WORSHIP
80,DCMS,EH,25/02/2015,Pearce Const Barnstaple Ltd,0040091420,"28,867.04 ",National Collections-Capital Investment Programme,WIP Operational Building Works
81,DCMS,EH,25/02/2015,Pearce Const Barnstaple Ltd,0040091420,"24,590.46 ",National Collections-Property Maintenance Programme,Planned Maintenance
82,DCMS,EH,18/02/2015,Preston Seventh Day Adventist Church,0082003611,"94,000.00 ",Heritage Protection & Planning-Nat. Planning & Conservation,GRANTS PAYABLE PLACES OF WORSHIP
83,DCMS,EH,23/02/2015,R Moulding and Co Salisbury Ltd,0040092492,"27,253.40 ",National Collections-Property Maintenance Programme,Annual Cyclical Works-Building
84,DCMS,EH,10/02/2015,Ratcliffes,0040090828,"45,217.91 ",Resources-Office Estate,Insurance
85,DCMS,EH,04/02/2015,Religious Society of Friends,0081003188,"28,000.00 ",Heritage Protection & Planning-Heritage Protection,ENABLING PROGRAMMES ENABLING PROGRAMMES
86,DCMS,EH,09/02/2015,Sally Strachey Historic Conservation,0040089424,"33,864.24 ",National Collections-Major Conservation Projects,Fees for Professional Advice
87,DCMS,EH,09/02/2015,Sally Strachey Historic Conservation,0040090601,"50,053.61 ",National Collections-Major Conservation Projects,Fees for Professional Advice
88,DCMS,EH,04/02/2015,SoftwareOne UK Ltd,0040090959,"29,174.40 ",Resources-IMT,Software Maintenance
89,DCMS,EH,04/02/2015,SoftwareOne UK Ltd,0040090959,"29,174.40 ",Resources-IMT,Software Maintenance
90,DCMS,EH,27/02/2015,St Andrew's PCC,0082003632,"31,500.00 ",Heritage Protection & Planning-Nat. Planning & Conservation,GRANTS PAYABLE PLACES OF WORSHIP
91,DCMS,EH,06/02/2015,STM Security Group  UK Ltd,0040089411,"26,931.14 ",National Collections-Property Maintenance Programme,Security Guard & Monitor Stati
92,DCMS,EH,03/02/2015,Sykes and Son Limited,0040089076,"19,608.31 ",National Collections-Property Maintenance Programme,Annual Cyclical Work M & E
93,DCMS,EH,03/02/2015,Sykes and Son Limited,0040089076,"9,562.78 ",National Collections-Property Maintenance Programme,Annual Cyclical Work M & E
94,DCMS,EH,03/02/2015,Sykes and Son Limited,0040089076,268.57 ,National Collections-Property Maintenance Programme,Annual Cyclical Work M & E
95,DCMS,EH,06/02/2015,The Churches Conservation Trust,0040091412,"27,246.79 ",National Advice & Information-Government Advice Department,Other Grants
96,DCMS,EH,27/02/2015,The Helmsley Estate,0082003635,"48,260.00 ",Heritage Protection & Planning-Nat. Planning & Conservation,GRANTS PAYABLE HISTORIC BUILDINGS
97,DCMS,EH,09/02/2015,The National Trust Wiltshire,0040089195,"48,655.86 ",National Collections-Historic Properties Department,Rent - Operating Leases
98,DCMS,EH,25/02/2015,The National Trust Wiltshire,0040092826,"30,000.00 ",National Collections-Local Management Agreements,RO Management Agreement
99,DCMS,EH,25/02/2015,The National Trust Wiltshire,0040092826,"1,647.60 ",National Collections-Local Management Agreements,RO Management Agreement
100,DCMS,EH,04/02/2015,"The Palace, Minister Precincts, Peterborough",0090514093,"30,000.00 ",Heritage Protection & Planning-Nat. Planning & Conservation,GRANTS PAYABLE OTHER GRANTS
101,DCMS,EH,06/02/2015,The Team Brand Communication Consultants,0040091202,"41,539.20 ",Resources-IMT,WIP Computer Consultancy
102,DCMS,EH,03/02/2015,TMP (UK) Ltd,0040090129,"25,562.50 ",National Collections-National Collections Centre,Recruitment
103,DCMS,EH,04/02/2015,Ultima Business Solutions Ltd,0040091055,"84,450.82 ",Resources-IMT,Computer Equipment <10k
104,DCMS,EH,09/02/2015,Upper Sheringham PCC,0082003575,"51,500.00 ",Heritage Protection & Planning-Nat. Planning & Conservation,GRANTS PAYABLE PLACES OF WORSHIP
105,DCMS,EH,19/02/2015,Vinci Construction UK Ltd,0040091804,"27,898.80 ",National Collections-Capital Investment Programme,WIP Professional Works Advice
106,DCMS,EH,19/02/2015,Vinci Construction UK Ltd,0040091804,"1,876.80 ",National Collections-Capital Investment Programme,Works for Heritage Buildings
107,DCMS,EH,19/02/2015,Vinci Construction UK Ltd,0040091804,19.20 ,National Collections-Capital Investment Programme,WIP Operational Building Works
108,DCMS,EH,19/02/2015,Vinci Construction UK Ltd,0040091804,"2,587.20 ",National Collections-Capital Investment Programme,WIP Operational Building Works
109,DCMS,EH,17/02/2015,Vitrine Systems Ltd,0040091534,"28,165.20 ",National Collections-Property Maintenance Programme,Responsive Maint Building
110,DCMS,EH,17/02/2015,Wakefield Metropolitan District Council,0082003606,"103,500.00 ",Heritage Protection & Planning-Nat. Planning & Conservation,GRANTS PAYABLE HISTORIC BUILDINGS
